bitfinex/quotes_SOLUSD_20240628
["timestamp","ask_amount","ask_price","bid_price","bid_amount"]
[1719578635292,6.884,145.27,145.15,6.5465]
[1719578635612,79.1218,145.25,145.15,6.5465]
[1719578635822,61.91,145.25,145.15,6.5465]
[1719578636118,68.7949,145.25,145.15,6.5465]
[1719578636486,6.8853,145.24,145.15,6.5465]
[1719578636902,6.8856,145.23,145.15,6.5465]
[1719578637297,61.91,145.25,145.15,6.5465]
[1719578637788,27.574,145.27,145.15,6.5465]
[1719578638117,6.8843,145.26,145.15,6.5465]
[1719578638491,17.2051,145.31,145.15,6.5465]
[1719578638708,27.5729,145.29,145.16,16.1624]
[1719578639018,6.8838,145.27,145.16,16.1624]
[1719578639409,6.8843,145.26,145.16,16.1624]
[1719578639608,27.5738,145.27,145.16,16.1624]
[1719578640127,61.91,145.27,145.16,16.1624]
[1719578640299,67.2938,145.27,145.16,16.1624]
[1719578640495,6.8843,145.26,145.16,16.1624]
[1719578641119,67.2938,145.27,145.16,16.1624]
[1719578641332,6.8832,145.28,145.16,16.1624]
[1719578641797,27.5729,145.29,145.16,16.1624]
[1719578641993,0.0754534,145.33,145.19,6.2363]
[1719578642216,0.0754534,145.33,145.21,6.2363]
[1719578642523,0.0754534,145.33,145.24,6.4967]
[1719578642705,0.0754534,145.33,145.25,1.37650681]
[1719578642910,0.0754534,145.33,145.24,6.4967]
[1719578643206,20.7654534,145.33,145.24,6.4967]
[1719578643402,61.9854534,145.33,145.24,6.4967]
[1719578643606,79.1884534,145.33,145.24,6.4967]
[1719578643798,6.8835,145.28,145.24,6.4967]
[1719578643990,6.8824,145.3,145.24,6.4967]
[1719578644626,6.8829,145.29,145.24,6.4967]
[1719578644922,6.8832,145.28,145.24,6.4967]
[1719578645138,61.91,145.29,145.24,6.4967]
[1719578645298,61.91,145.29,145.23,15.9169]
[1719578645299,6.8843,145.26,145.23,15.9169]
[1719578645614,6.8843,145.26,145.2,6.423]
[1719578645801,6.8837,145.28,145.2,6.423]
[1719578646201,20.69,145.28,145.2,6.423]
[1719578646799,6.8843,145.26,145.2,6.423]
[1719578646996,6.8852,145.24,145.2,6.423]
[1719578647203,6.8854,145.24,145.2,6.423]
[1719578647704,6.884,145.27,145.2,6.423]
[1719578647913,20.69,145.28,145.2,6.423]
[1719578648412,61.91,145.28,145.2,6.423]
[1719578649008,6.8857,145.23,145.2,6.423]
[1719578649514,61.91,145.27,145.2,6.423]
[1719578649726,6.8845,145.26,145.2,6.423]
[1719578650098,27.5745,145.26,145.2,6.423]
[1719578650301,6.8848,145.25,145.2,6.423]
[1719578650529,6.8852,145.24,145.2,6.423]
[1719578650730,79.1208,145.26,145.2,6.423]
[1719578650933,6.8861,145.22,145.2,6.423]
[1719578651341,6.8865,145.21,145.16,6.0075]
[1719578651504,6.8872,145.2,145.16,6.0075]
[1719578651704,6.8867,145.21,145.16,6.0075]
[1719578652124,6.8872,145.2,145.16,6.0075]
[1719578652324,6.8867,145.21,145.16,6.0075]
[1719578653215,27.5762,145.22,145.16,6.0075]
[1719578653413,6.8866,145.21,145.16,6.0075]
[1719578653605,6.8861,145.22,145.16,6.0075]
[1719578653816,6.8857,145.23,145.16,6.0075]
[1719578654113,6.8843,145.26,145.16,6.0075]
[1719578654438,17.2064,145.3,145.17,1.37734095]
[1719578654731,6.8834,145.28,145.18,1.37713923]
[1719578654925,6.8834,145.28,145.16,6.0075]
[1719578655505,6.8838,145.27,145.16,6.0075]
[1719578655930,0.0754534,145.33,145.18,6.652]
[1719578656130,6.8829,145.29,145.19,15.8194]
[1719578656307,6.8837,145.27,145.19,15.8194]
[1719578656703,6.8843,145.26,145.19,15.8194]
[1719578657109,6.8838,145.27,145.19,15.8194]
[1719578658119,6.8842,145.26,145.19,15.8194]
[1719578658425,6.8848,145.25,145.19,15.8194]
[1719578658621,6.8853,145.24,145.19,15.8194]
[1719578658827,6.8848,145.25,145.19,15.8194]
[1719578659036,61.91,145.27,145.19,15.8194]
[1719578659615,6.8861,145.22,145.19,15.8194]
[1719578659815,61.91,145.25,145.19,15.8194]
[1719578660122,6.8854,145.24,145.19,15.8194]
[1719578660611,6.8856,145.23,145.19,15.8194]
[1719578661344,6.8851,145.25,145.19,15.8194]
[1719578662131,20.69,145.27,145.19,15.8194]
[1719578662442,6.8826,145.3,145.19,15.8194]
[1719578662644,0.0754534,145.33,145.19,15.8194]
[1719578662843,6.8815,145.32,145.2,6.293]
[1719578663847,6.8816,145.32,145.21,15.6433]
[1719578664341,0.0754534,145.33,145.21,15.6433]
[1719578664550,6.8818,145.32,145.21,15.6433]
[1719578664925,0.0754534,145.33,145.21,15.6433]
[1719578664926,6.882,145.31,145.21,15.6433]
[1719578665544,6.9567534,145.33,145.21,15.6433]
[1719578665749,6.8814,145.32,145.21,15.6433]
[1719578666426,0.0754534,145.33,145.21,15.6433]
[1719578666748,0.0754534,145.33,145.22,6.3008]
[1719578667443,6.8816,145.32,145.22,6.3008]
[1719578667645,6.8819,145.31,145.22,6.3008]
[1719578667948,0.0754534,145.33,145.22,6.3008]
[1719578668119,6.8814,145.32,145.22,6.3008]
[1719578668549,6.8829,145.29,145.22,6.3008]
[1719578668758,6.8824,145.3,145.22,6.3008]
[1719578668925,0.0754534,145.33,145.22,6.3008]
[1719578669131,6.9563534,145.33,145.22,6.3008]
[1719578669822,0.0754534,145.33,145.22,6.3008]
[1719578670330,0.0754534,145.33,145.23,15.1933]
[1719578670534,6.9563534,145.33,145.23,15.1933]
[1719578670745,0.0754534,145.33,145.23,15.1933]
[1719578671043,0.0754534,145.33,145.24,6.0145]
[1719578671451,0.0754534,145.33,145.25,1.37646367]
[1719578671749,0.0754534,145.33,145.24,6.0145]
[1719578671750,6.8818,145.31,145.24,6.0145]
[1719578671965,6.9567534,145.33,145.24,6.0145]
[1719578672630,0.0754534,145.33,145.24,6.0145]
[1719578673637,0.0754534,145.33,145.25,15.2054]
[1719578675553,0.0754534,145.33,145.26,6.0762]
[1719578675732,0.0754534,145.33,145.27,15.2175]
[1719578676903,20.0,145.39,145.27,15.2175]
[1719578677157,6.8796,145.36,145.27,15.2175]
[1719578677326,6.88,145.35,145.27,15.2175]
[1719578677531,61.22,145.39,145.27,15.2175]
[1719578677532,6.8795,145.36,145.27,15.2175]
[1719578677838,6.8791,145.37,145.27,15.2175]
[1719578678250,6.8798,145.36,145.27,15.2175]
[1719578678657,6.8801,145.35,145.27,15.2175]
[1719578678849,40.69,145.39,145.27,15.2175]
[1719578679052,6.8794,145.36,145.27,15.2175]
[1719578679537,6.8791,145.37,145.27,15.2175]
[1719578680469,6.8785,145.38,145.27,15.2175]
[1719578681349,6.8782,145.39,145.27,15.2175]
[1719578681544,6.8782,145.39,145.28,1.37601182]
[1719578682087,6.8785,145.38,145.27,15.2175]
[1719578682385,6.8785,145.38,145.3,6.389]
[1719578682689,6.878,145.39,145.31,15.2531]
[1719578682846,0.558873,145.41,145.31,15.2531]
[1719578683045,7.436173,145.41,145.31,15.2531]
[1719578684070,6.8775,145.4,145.31,15.2531]
[1719578684452,6.8781,145.39,145.31,15.2531]
[1719578684646,6.8786,145.38,145.31,15.2531]
[1719578684864,6.8781,145.39,145.31,15.2531]
[1719578685066,6.8777,145.4,145.31,15.2531]
[1719578685563,0.558873,145.41,145.31,15.2531]
[1719578685773,0.558873,145.41,145.32,1.37579454]
[1719578685967,7.435973,145.41,145.31,15.2531]
[1719578686969,6.8776,145.4,145.31,15.2531]
[1719578687352,7.436073,145.41,145.31,15.2531]
[1719578687679,0.558873,145.41,145.31,15.2531]
[1719578688375,7.435973,145.41,145.31,15.2531]
[1719578688551,0.558873,145.41,145.31,15.2531]
[1719578688866,7.435973,145.41,145.31,15.2531]
[1719578689660,0.558873,145.41,145.31,15.2531]
[1719578689855,0.558873,145.41,145.33,16.1289]
[1719578690068,0.558873,145.41,145.36,6.4174]
[1719578690850,20.69,145.51,145.38,16.0856]
[1719578691056,17.1804,145.52,145.39,6.4662]
[1719578691260,34.3545,145.55,145.39,6.4662]
[1719578691261,17.1766,145.55,145.39,6.4662]
[1719578691673,6.8724,145.51,145.39,6.4662]
[1719578691854,20.69,145.51,145.39,6.4662]
[1719578692055,6.8738,145.48,145.39,6.4662]
[1719578692273,6.8737,145.49,145.39,6.4662]
[1719578692851,6.8727,145.51,145.39,6.4662]
[1719578693254,20.69,145.54,145.39,6.4662]
[1719578693255,6.8734,145.49,145.39,6.4662]
[1719578693563,6.8729,145.5,145.39,6.4662]
[1719578694071,6.8733,145.49,145.39,6.4662]
[1719578694675,6.8729,145.5,145.39,6.4662]
[1719578695563,6.8742,145.47,145.39,6.4662]
[1719578696079,6.8739,145.48,145.39,6.4662]
[1719578696248,6.8734,145.49,145.39,6.4662]
[1719578697071,20.69,145.49,145.39,6.4662]
[1719578697572,6.8734,145.49,145.39,6.4662]
[1719578698174,6.8738,145.48,145.39,6.4662]
[1719578698377,6.8734,145.49,145.39,6.4662]
[1719578698666,6.8739,145.48,145.39,6.4662]
[1719578698870,20.69,145.51,145.39,6.4662]
[1719578699174,6.8743,145.47,145.39,6.4662]
[1719578700060,6.8739,145.48,145.39,6.4662]
[1719578700369,27.5629,145.5,145.4,1.3751851]
[1719578700571,6.8729,145.5,145.4,1.3751851]
[1719578700973,41.38,145.51,145.39,38.3062]
[1719578701158,6.8742,145.47,145.39,38.3062]
[1719578701360,6.8748,145.46,145.39,6.4662]
[1719578701567,20.69,145.5,145.39,6.4662]
[1719578701568,6.8752,145.45,145.39,6.4662]
[1719578701754,20.69,145.48,145.39,6.4662]
[1719578701755,6.8747,145.46,145.39,6.4662]
[1719578701954,41.38,145.5,145.39,6.4662]
[1719578702178,6.8733,145.5,145.39,38.3062]
[1719578702351,6.8738,145.48,145.39,38.3062]
[1719578702554,62.07,145.5,145.39,38.3062]
[1719578702775,20.69,145.5,145.39,38.3062]
[1719578703081,6.8733,145.49,145.39,38.3062]
[1719578703278,6.8727,145.51,145.39,38.3062]
[1719578703474,6.8736,145.49,145.39,38.3062]
[1719578703680,62.07,145.52,145.39,38.3062]
[1719578703968,6.8731,145.5,145.39,38.3062]
[1719578704174,6.8734,145.49,145.39,38.3062]
[1719578704478,20.69,145.47,145.39,6.4662]
[1719578704778,6.8747,145.46,145.39,6.4662]
[1719578705080,62.07,145.49,145.39,6.4662]
[1719578705283,6.873,145.5,145.39,6.4662]
[1719578705571,17.178,145.54,145.39,38.3062]
[1719578705766,20.0,145.53,145.39,38.3062]
[1719578705964,57.1147485,145.56,145.39,38.3062]
[1719578705965,22.7627485,145.56,145.42,31.84]
[1719578706179,27.561,145.54,145.43,21.8455]
[1719578706563,6.8716,145.53,145.43,21.8455]
[1719578706763,6.872,145.52,145.43,21.8455]
[1719578707093,20.69,145.52,145.43,21.8455]
[1719578707277,6.873,145.5,145.43,21.8455]
[1719578708108,20.69,145.5,145.43,21.8455]
[1719578708471,6.8739,145.48,145.43,21.8455]
[1719578709978,20.69,145.52,145.43,21.8455]
[1719578710177,6.8717,145.53,145.43,21.8455]
[1719578710888,0.8175485,145.56,145.43,21.8455]
[1719578711105,20.69,145.54,145.43,21.8455]
[1719578711561,6.8721,145.52,145.43,21.8455]
[1719578711766,6.8715,145.53,145.43,21.8455]
[1719578712272,0.8175485,145.56,145.45,31.84]
[1719578712481,7.6875485,145.56,145.46,7.94526298]
[1719578712784,7.6875485,145.56,145.46,6.5709]
[1719578713483,0.8175485,145.56,145.47,17.22928933]
[1719578713885,0.8175485,145.56,145.48,7.62569259]
[1719578714091,0.8175485,145.56,145.5,15.6579]
[1719578714263,0.8175485,145.56,145.51,1.37373244]
[1719578714467,0.8175485,145.56,145.5,15.6579]
[1719578714880,0.8175485,145.56,145.51,6.1571]
[1719578721791,7.6876485,145.56,145.51,6.1571]
[1719578722095,7.6876485,145.56,145.47,6.136]
[1719578722096,0.8175485,145.56,145.47,6.136]
[1719578722486,6.871,145.54,145.47,6.136]
[1719578722688,6.8706,145.55,145.47,6.136]
[1719578723086,28.3775485,145.56,145.47,6.136]
[1719578723288,0.8175485,145.56,145.48,1.37432174]
[1719578723486,0.8175485,145.56,145.49,1.37432485]
[1719578723686,0.8175485,145.56,145.47,6.136]
[1719578723893,0.8175485,145.56,145.48,1.3742024]
[1719578724081,0.8175485,145.56,145.49,1.37419218]
[1719578724281,0.8175485,145.56,145.47,6.136]
[1719578724895,0.8175485,145.56,145.48,16.5331]
[1719578725605,0.8175485,145.56,145.49,20.0]
[1719578726692,0.8175485,145.56,145.48,16.5331]
[1719578728303,0.8175485,145.56,145.49,6.0843]
[1719578733606,7.6878485,145.56,145.49,6.0843]
[1719578733809,0.8175485,145.56,145.49,6.0843]
[1719578734004,6.8709,145.55,145.49,6.0843]
[1719578734314,6.871,145.54,145.49,6.0843]
[1719578734812,6.8706,145.55,145.49,6.0843]
[1719578735306,0.8175485,145.56,145.48,16.5331]
[1719578735515,6.8708,145.55,145.48,16.5331]
[1719578735702,7.6876485,145.56,145.48,16.5331]
[1719578735899,28.3776485,145.56,145.48,16.5331]
[1719578736199,0.8175485,145.56,145.48,16.5331]
[1719578736941,6.8707,145.55,145.48,16.5331]
[1719578737512,0.8175485,145.56,145.48,16.5331]
[1719578737513,6.871,145.54,145.48,16.5331]
[1719578737703,6.871,145.54,145.45,6.3571]
[1719578737704,6.8725,145.51,145.45,6.3571]
[1719578738011,27.5605,145.55,145.45,6.3571]
[1719578738395,20.69,145.55,145.45,6.3571]
[1719578738589,21.5075485,145.56,145.45,6.3571]
[1719578738989,28.3776485,145.56,145.45,6.3571]
[1719578740009,21.5075485,145.56,145.45,6.3571]
[1719578740313,6.8717,145.53,145.45,6.3571]
[1719578740503,6.8719,145.52,145.45,6.3571]
[1719578741118,37.8682,145.54,145.45,6.3571]
[1719578741325,6.872,145.52,145.45,6.3571]
[1719578741490,6.8715,145.53,145.45,6.3571]
[1719578742124,20.69,145.55,145.45,6.3571]
[1719578742125,6.8719,145.52,145.45,6.3571]
[1719578744093,6.8724,145.51,145.45,6.3571]
[1719578744302,6.8729,145.5,145.45,6.3571]
[1719578745001,79.2464,145.55,145.45,6.3571]
[1719578745200,27.5618,145.53,145.45,6.3571]
[1719578745401,6.8721,145.52,145.45,6.3571]
[1719578746619,6.8714,145.53,145.45,6.3571]
[1719578747713,6.8719,145.52,145.45,6.3571]
[1719578747918,21.5075485,145.56,145.45,6.3571]
[1719578748218,28.3776485,145.56,145.45,6.3571]
[1719578748413,21.5075485,145.56,145.45,6.3571]
[1719578748606,0.8175485,145.56,145.45,6.3571]
[1719578749022,0.8175485,145.56,145.46,31.8]
[1719578749316,0.8175485,145.56,145.45,6.3571]
[1719578749500,0.8175485,145.56,145.46,20.0]
[1719578749908,0.8175485,145.56,145.47,15.5256]
[1719578750415,7.6879485,145.56,145.47,15.5256]
[1719578750918,0.8175485,145.56,145.47,15.5256]
[1719578751416,7.6875485,145.56,145.47,15.5256]
[1719578751622,0.8175485,145.56,145.47,15.5256]
[1719578755821,0.8175485,145.56,145.48,6.334]
[1719578756409,0.8175485,145.56,145.49,15.0041]
[1719578757928,0.8175485,145.56,145.51,6.473]
[1719578758308,0.8175485,145.56,145.52,15.8645]
[1719578761913,0.8175485,145.56,145.53,33.17378741]
[1719578762631,0.8175485,145.56,145.53,31.8]
[1719578762810,0.8175485,145.56,145.52,15.8645]
[1719578765610,0.8175485,145.56,145.47,15.8577]
[1719578765917,6.871,145.54,145.47,15.8577]
[1719578766116,6.8719,145.52,145.47,15.8577]
[1719578766717,6.8715,145.53,145.47,15.8577]
[1719578767647,6.872,145.52,145.47,15.8577]
[1719578767933,6.872,145.52,145.46,6.2221]
[1719578768444,6.872,145.52,145.44,15.1172]
[1719578768646,27.562,145.52,145.44,15.1172]
[1719578768836,6.8724,145.51,145.44,15.1172]
[1719578769147,20.69,145.49,145.42,6.2765]
[1719578769304,20.69,145.5,145.42,6.2765]
[1719578769509,6.8739,145.48,145.42,6.2765]
[1719578769911,27.5639,145.48,145.4,16.3872]
[1719578770111,6.8734,145.49,145.4,16.3872]
[1719578770410,27.5649,145.46,145.4,16.3872]
[1719578770725,6.8752,145.45,145.38,13.29481629]
[1719578770931,6.8752,145.45,145.38,6.2001]
[1719578771233,20.69,145.46,145.38,6.2001]
[1719578771450,62.07,145.46,145.36,16.4601]
[1719578771816,20.69,145.44,145.36,16.4601]
[1719578772941,27.5648,145.46,145.36,16.4601]
[1719578773332,6.8757,145.44,145.36,16.4601]
[1719578773520,20.69,145.43,145.36,16.4601]
[1719578773712,6.8769,145.42,145.36,16.4601]
[1719578773916,20.69,145.42,145.34,6.2075]
[1719578774114,6.8776,145.4,145.34,6.2075]
[1719578774330,64.2263,145.44,145.31,15.2696]
[1719578774331,27.5672,145.41,145.31,21.8186]
[1719578774623,20.69,145.41,145.31,21.8186]
[1719578774847,20.69,145.4,145.31,21.8186]
[1719578775026,27.5675,145.41,145.31,21.8186]
[1719578775627,6.8776,145.4,145.31,21.8186]
[1719578776042,20.69,145.39,145.31,21.8186]
[1719578776954,6.8788,145.38,145.31,21.8186]
[1719578778032,27.569,145.37,145.31,21.8186]
[1719578778654,41.38,145.39,145.27,22.4724]
[1719578778655,27.5695,145.36,145.27,22.4724]
[1719578778955,27.57,145.35,145.27,22.4724]
[1719578779636,20.69,145.34,145.27,22.4724]
[1719578780328,27.5705,145.34,145.27,22.4724]
[1719578781261,68.9505,145.34,145.23,23.004]
[1719578781434,62.07,145.34,145.23,23.004]
[1719578781838,68.9505,145.34,145.23,23.004]
[1719578782156,20.69,145.32,145.23,23.004]
[1719578782372,41.38,145.31,145.23,23.004]
[1719578782534,27.5724,145.3,145.23,23.004]
[1719578782739,20.69,145.28,145.19,22.5634]
[1719578783039,6.8831,145.29,145.19,22.5634]
[1719578783040,41.38,145.29,145.19,22.5634]
[1719578783247,20.69,145.3,145.19,22.5634]
[1719578783548,68.9523,145.3,145.19,22.5634]
[1719578783738,68.9523,145.3,145.19,22.0634]
[1719578784137,6.883,145.29,145.19,22.0634]
[1719578784355,20.69,145.3,145.19,22.0634]
[1719578784957,20.69,145.28,145.19,22.0634]
[1719578785274,20.69,145.26,145.19,22.0634]
[1719578785560,27.5742,145.26,145.19,22.0634]
[1719578785798,6.8824,145.3,145.19,22.0634]
[1719578786568,17.2013,145.34,145.19,22.0634]
[1719578786569,41.38,145.33,145.19,22.0634]
[1719578786782,6.8815,145.32,145.19,22.0634]
[1719578786998,6.8805,145.34,145.19,22.0634]
[1719578787174,17.2002,145.35,145.2,20.0]
[1719578787397,6.8821,145.31,145.2,20.0]
[1719578787553,27.5721,145.31,145.2,20.0]
[1719578787749,6.8815,145.32,145.2,20.0]
[1719578787948,20.69,145.31,145.2,20.0]
[1719578788663,27.571,145.33,145.2,20.0]
[1719578788872,20.69,145.34,145.2,20.0]
[1719578789253,20.69,145.34,145.22,16.0194]
[1719578789546,20.69,145.34,145.23,1.37669751]
[1719578789847,20.69,145.35,145.25,6.2602]
[1719578790051,27.5718,145.31,145.25,6.2602]
[1719578790582,6.8815,145.32,145.25,6.2602]
[1719578790763,20.69,145.33,145.25,6.2602]
[1719578791260,48.2602,145.35,145.25,6.2602]
[1719578791261,20.69,145.34,145.25,6.2602]
[1719578791648,27.5705,145.34,145.25,6.2602]
[1719578792270,6.8809,145.33,145.25,6.2602]
[1719578792973,6.8814,145.32,145.25,6.2602]
[1719578793171,20.69,145.32,145.25,6.2602]
[1719578793389,6.8824,145.3,145.25,6.2602]
[1719578793592,6.8829,145.29,145.25,6.2602]
[1719578793899,6.8824,145.3,145.25,6.2602]
[1719578794104,6.8824,145.3,145.22,22.2727]
[1719578794408,6.8829,145.29,145.22,22.2727]
[1719578795196,27.5729,145.29,145.22,22.2727]
[1719578795495,6.8838,145.27,145.22,22.2727]
[1719578795785,27.5734,145.28,145.22,22.2727]
[1719578796286,20.69,145.28,145.22,22.2727]
[1719578796585,6.8822,145.31,145.22,22.2727]
[1719578796786,20.69,145.32,145.22,22.2727]
[1719578796971,22.303,145.34,145.22,22.2727]
[1719578796972,6.8804,145.34,145.22,22.2727]
[1719578797289,6.8804,145.34,145.23,31.92]
[1719578797671,6.881,145.33,145.23,31.92]
[1719578798073,20.69,145.35,145.23,31.92]
[1719578798385,15.4823,145.38,145.24,15.0055]
[1719578798690,27.57,145.35,145.24,15.0055]
[1719578798897,20.69,145.35,145.24,15.0055]
[1719578799267,41.38,145.37,145.24,15.0055]
[1719578799697,6.8802,145.35,145.24,15.0055]
[1719578799866,20.69,145.34,145.24,15.0055]
[1719578800070,6.8814,145.32,145.24,15.0055]
[1719578800466,20.69,145.34,145.24,15.0055]
[1719578800467,6.8819,145.31,145.24,15.0055]
[1719578800881,27.5713,145.33,145.24,15.0055]
[1719578801285,27.5713,145.33,145.25,1.37669564]
[1719578801493,6.8813,145.33,145.25,1.37669564]
[1719578802478,6.8814,145.32,145.24,15.0055]
[1719578802995,62.07,145.33,145.24,15.0055]
[1719578803374,34.3967,145.37,145.24,15.0055]
[1719578803375,6.8835,145.28,145.24,15.0055]
[1719578803901,6.8829,145.29,145.24,15.0055]
[1719578804098,62.07,145.31,145.24,15.0055]
[1719578804099,27.5724,145.3,145.24,15.0055]
[1719578804774,6.882,145.31,145.24,15.0055]
[1719578804974,27.5715,145.32,145.24,15.0055]
[1719578805498,6.8804,145.34,145.24,15.0055]
[1719578805897,27.5701,145.35,145.24,15.0055]
[1719578806099,6.8801,145.35,145.24,15.0055]
[1719578806287,6.8804,145.34,145.25,6.2386]
[1719578806477,6.8817,145.32,145.25,6.2386]
[1719578807585,20.69,145.3,145.24,15.0055]
[1719578807788,6.8836,145.28,145.24,15.0055]
[1719578809004,6.8829,145.29,145.24,15.0055]
[1719578810676,20.69,145.29,145.24,15.0055]
[1719578810873,20.69,145.29,145.21,6.5532]
[1719578811077,20.69,145.28,145.21,6.5532]
[1719578811292,27.5731,145.29,145.21,6.5532]
[1719578811897,6.8842,145.26,145.21,6.5532]
[1719578812099,20.69,145.29,145.21,6.5532]
[1719578812306,6.8837,145.27,145.21,6.5532]
[1719578812605,27.5734,145.28,145.21,6.5532]
[1719578812986,20.69,145.28,145.21,6.5532]
[1719578813905,27.5732,145.28,145.21,6.5532]
[1719578814115,6.8838,145.27,145.21,6.5532]
[1719578814411,27.5738,145.27,145.21,6.5532]
[1719578814598,62.07,145.27,145.21,6.5532]
[1719578814790,6.8851,145.25,145.21,6.5532]
[1719578814993,6.8851,145.24,145.2,15.2488]
[1719578815404,27.5747,145.25,145.2,15.2488]
[1719578815584,20.69,145.25,145.2,15.2488]
[1719578815790,20.69,145.24,145.18,6.1493]
[1719578816418,27.5752,145.24,145.18,6.1493]
[1719578817307,27.5746,145.25,145.18,6.1493]
[1719578817507,62.07,145.25,145.18,6.1493]
[1719578817709,27.5754,145.24,145.18,6.1493]
[1719578818518,68.9548,145.25,145.18,6.1493]
[1719578818887,62.07,145.25,145.18,6.1493]
[1719578819805,6.8856,145.23,145.18,6.1493]
[1719578819996,27.5756,145.23,145.18,6.1493]
[1719578820305,20.69,145.21,145.16,15.1719]
[1719578820508,6.888,145.18,145.15,6.5614]
[1719578820709,6.888,145.18,145.12,22.0154]
[1719578820907,27.5776,145.19,145.12,22.0154]
[1719578821098,20.69,145.19,145.12,22.0154]
[1719578821295,27.5778,145.19,145.12,22.0154]
[1719578821498,20.69,145.19,145.12,22.0154]
[1719578822004,6.8876,145.19,145.12,22.0154]
[1719578822318,27.5772,145.2,145.12,22.0154]
[1719578822614,20.69,145.2,145.12,22.0154]
[1719578822795,27.5762,145.22,145.12,22.0154]
[1719578822989,20.69,145.22,145.12,22.0154]
[1719578823189,6.8853,145.24,145.14,31.98]
[1719578823414,41.38,145.25,145.15,1.37764002]
[1719578823618,41.38,145.25,145.17,31.98]
[1719578823915,62.07,145.25,145.17,31.98]
[1719578824099,6.8857,145.23,145.16,23.063]
[1719578824414,20.69,145.24,145.16,23.063]
[1719578824588,6.8862,145.22,145.16,23.063]
[1719578824791,27.5755,145.24,145.16,23.063]
[1719578825209,6.8861,145.22,145.16,23.063]
[1719578825512,6.8869,145.21,145.16,23.063]
[1719578825709,6.8871,145.2,145.16,23.063]
[1719578826710,6.8875,145.19,145.12,22.2837]
[1719578826919,27.5775,145.19,145.12,22.2837]
[1719578827091,20.69,145.19,145.12,22.2837]
[1719578827290,27.5775,145.19,145.12,22.2837]
[1719578827824,20.69,145.19,145.12,22.2837]
[1719578829019,20.69,145.2,145.12,22.2837]
[1719578829218,62.07,145.21,145.12,22.2837]
[1719578830018,68.9566,145.21,145.12,22.2837]
[1719578830217,6.8875,145.19,145.12,22.2837]
[1719578830410,6.8881,145.18,145.12,22.2837]
[1719578831326,27.5776,145.19,145.12,22.2837]
[1719578831510,27.5768,145.21,145.12,22.2837]
[1719578831716,20.69,145.21,145.12,22.2837]
[1719578832016,41.38,145.22,145.12,22.2837]
[1719578832017,27.5762,145.22,145.12,22.2837]
[1719578832406,20.69,145.22,145.12,22.2837]
[1719578832618,41.38,145.23,145.12,22.2837]
[1719578832929,27.5756,145.23,145.12,22.2837]
[1719578833631,27.5753,145.24,145.12,22.2837]
[1719578833927,27.5756,145.23,145.13,1.37610459]
[1719578834133,6.8861,145.22,145.12,22.2837]
[1719578834434,20.69,145.23,145.12,22.2837]
[1719578834627,6.8864,145.22,145.12,22.2837]
[1719578835010,27.5757,145.23,145.12,22.2837]
[1719578835411,6.8872,145.2,145.12,22.2837]
[1719578835623,20.69,145.2,145.12,22.2837]
[1719578835818,6.8876,145.19,145.12,22.2837]
[1719578836930,62.07,145.22,145.12,22.2837]
[1719578837133,27.5762,145.22,145.13,1.37568828]
[1719578837324,27.5762,145.22,145.12,22.2837]